fUST/lending_fUST_20241114
["ID","MTS","AMOUNT","RATE_DAILY","PERIOD"]
[342184555,1731563439515,-310.3220463,0.00016973,2]
[342184556,1731563439525,-500.0,0.00016973,2]
[342184557,1731563439534,-500.33638039,0.00016973,2]
[342184558,1731563439543,-500.72276724,0.00016973,2]
[342184559,1731563439553,-500.0,0.00016973,2]
[342184560,1731563439563,-500.0,0.00016973,2]
[342184561,1731563439573,-500.0,0.00016973,2]
[342184562,1731563439583,-500.70622727,0.00016973,2]
[342184563,1731563439594,-500.0,0.00016973,2]
[342184564,1731563439603,-500.0,0.00016973,2]
[342184565,1731563439613,-417.3524942,0.00016973,2]
[342184566,1731563439622,-500.0,0.00016973,2]
[342184567,1731563439631,-500.0,0.00016973,2]
[342184568,1731563439640,-500.0,0.00016973,2]
[342184569,1731563439650,-201.86862721,0.00016973,2]
[342184570,1731563439659,-200.5774804,0.00016973,2]
[342184571,1731563439668,-500.0,0.00016973,2]
[342184572,1731563439677,-500.0,0.00016973,2]
[342184573,1731563439686,-213.00867948,0.00016973,2]
[342184574,1731563439775,-500.0,0.00016973,2]
[342184575,1731563439785,-501.29813577,0.00016973,2]
[342184576,1731563439794,-500.0,0.00016973,2]
[342184577,1731563439803,-162.04119911,0.00016973,2]
[342184578,1731563439812,-500.0,0.00016973,2]
[342184580,1731563439821,-305.74725891,0.00016973,2]
[342184581,1731563439830,-500.0,0.00016973,2]
[342184582,1731563439841,-500.0,0.00016973,2]
[342184583,1731563439852,-90846.68815627,0.0001698,2]
[342184589,1731563440428,-32237.37037094,0.0001698,2]
[342184623,1731563545594,1724.0,0.00025,120]
[342184625,1731563996068,500.0,0.000167,30]
[342184626,1731564033976,500.0,0.00019,30]
[342184627,1731564047136,500.0,0.00019,30]
[342184628,1731564052096,500.0,0.00019,30]
[342184629,1731564056410,500.0,0.00019,30]
[342184630,1731564062368,500.0,0.00019,30]
[342184631,1731564070684,353.71,0.00019,30]
[342184639,1731564320407,151.0,0.00027,60]
[342184699,1731564634784,-300.0,0.00014255,2]
[342184700,1731564634795,-189.03244338,0.00014255,2]
[342184709,1731564638816,-110.96755662,0.00014255,2]
[342184710,1731564638826,-883.0567954,0.00014256,2]
[342184720,1731564640520,-1949.51976,0.00014256,2]
[342184721,1731564640547,-652.6673982,0.00014256,2]
[342184722,1731564640558,-904.6321097,0.00014256,2]
[342184723,1731564640569,-593.8141806,0.00014256,2]
[342184724,1731564640580,-546.0,0.00014256,2]
[342184725,1731564640592,-507.74244554,0.00014256,2]
[342184726,1731564640608,-468.42300756,0.00014256,2]
[342184727,1731564640619,-459.25300002,0.00014256,2]
[342184728,1731564640631,-1161.67431419,0.00014256,2]
[342184729,1731564640643,-744.26,0.00014256,2]
[342184730,1731564640654,-788.854044,0.00014256,2]
[342184731,1731564640665,-508.52,0.00014256,2]
[342184732,1731564640676,-553.77580003,0.00014256,2]
[342184733,1731564640687,-995.0,0.00014256,2]
[342184734,1731564640698,-535.2,0.00014256,2]
[342184748,1731564643588,-12647.60714476,0.00014256,2]
[342184749,1731564643600,-1248.956936,0.00014279,2]
[342184750,1731564643609,-6194.3297665,0.00014634,2]
[342184751,1731564643618,-3164.12206627,0.00014708,2]
[342184752,1731564643629,-2135.3186802,0.00014736,2]
[342184753,1731564643638,-242.1589431,0.00014808,2]
[342184754,1731564643647,-1248.956936,0.00014964,2]
[342184755,1731564643656,-3699.4365109,0.00015084,2]
[342184756,1731564643665,-1307.55645733,0.00015084,2]
[342184757,1731564643675,-220.8531341,0.00015135,2]
[342184758,1731564643684,-420.0,0.00015613,2]
[342184759,1731564643693,-1248.956936,0.00015649,2]
[342184760,1731564643702,-420.0,0.0001568,2]
[342184761,1731564643712,-293.383,0.0001607,2]
[342184762,1731564643721,-500.0,0.0001607,2]
[342184763,1731564643731,-346.39807428,0.00016222,2]
[342184764,1731564643742,-455.0,0.000163,30]
[342184765,1731564643752,-152.0,0.00016326,2]
[342184766,1731564643761,-1000.0,0.00016552,2]
[342184767,1731564643771,-158.30853723,0.00016561,2]
[342184768,1731564643780,-500.0,0.0001665,2]
[342184769,1731564643790,-500.0,0.0001665,2]
[342184770,1731564643799,-500.0,0.0001665,2]
[342184771,1731564643808,-500.0,0.0001665,2]
[342184772,1731564643818,-500.0,0.0001665,2]
[342184773,1731564643827,-500.0,0.0001665,2]
[342184774,1731564643836,-500.0,0.0001665,2]
[342184775,1731564643845,-500.0,0.0001665,2]
[342184776,1731564643854,-500.0,0.0001665,2]
[342184777,1731564643863,-500.0,0.0001665,2]
[342184778,1731564643873,-500.0,0.0001665,2]
[342184779,1731564643882,-500.0,0.0001665,2]
[342184780,1731564643891,-500.0,0.0001665,2]
[342184781,1731564643964,-250.0,0.0001665,2]
[342184782,1731564643983,-527.0423827,0.0001665,2]
[342184783,1731564643992,-500.0,0.0001665,2]
[342184784,1731564644001,-500.0,0.0001665,2]
[342184785,1731564644011,-549.10116582,0.0001665,2]
[342184786,1731564644021,-617.3675485,0.0001665,2]
[342184787,1731564644029,-500.0,0.0001665,2]
[342184788,1731564644039,-500.0,0.0001665,2]
[342184789,1731564644048,-500.0,0.0001665,2]
[342184790,1731564644057,-500.0,0.0001665,2]
[342184791,1731564644067,-500.0,0.0001665,2]
[342184792,1731564644076,-500.0,0.0001665,2]
[342184793,1731564644085,-500.0,0.0001665,2]
[342184794,1731564644094,-205.22655023,0.0001665,2]
[342184795,1731564644104,-464.54212598,0.0001665,2]
[342184796,1731564644114,-200.0,0.0001665,2]
[342184797,1731564644123,-250.0,0.0001665,2]
[342184798,1731564644132,-29679.16705815,0.00016651,2]
[342184815,1731564649341,2927.0,0.00027,120]
[342184838,1731565282127,173.43377804,0.00027,60]
[342184847,1731565707928,388.27013504,0.00027,60]
[342184905,1731565832011,-300.0,0.00015698,2]
[342184906,1731565832021,-300.0,0.00015698,2]
[342184907,1731565832031,-771.636808,0.00015699,2]
[342184924,1731565837922,-689.6240013,0.00015699,2]
[342184945,1731565842758,-4996.70381358,0.00015699,2]
[342184947,1731565842770,-4449.17994969,0.00015699,2]
[342184989,1731566876534,158.421,0.000234,60]
[342185035,1731567031953,-300.0,0.0001457,2]
[342185038,1731567031964,-300.0,0.0001457,2]
[342185040,1731567031976,-855.65795601,0.00014571,2]
[342185053,1731567038375,-4433.670183,0.00014571,2]
[342185084,1731567040019,-19610.67186099,0.00014571,2]
[342185085,1731567040030,-182.388947,0.00014936,2]
[342185086,1731567040040,-12961.7948785,0.00015214,2]
[342185118,1731567053609,1600.0,0.00027,60]
[342185122,1731567711520,1901.3,0.00027,60]
[342185123,1731567771308,687.0,0.00027,60]
[342185126,1731567919019,735.65,0.00010959,2]
[342185192,1731568019089,-162.749476,0.00013973,2]
[342185193,1731568019109,-142.39746617,0.000148,2]
[342185271,1731568232618,-1730.9612688,0.0001497,2]
[342185272,1731568232628,-600.58948636,0.00014973,2]
[342185273,1731568232638,-182.388947,0.00015073,2]
[342185274,1731568232647,-178.4067064,0.00015078,2]
[342185275,1731568232657,-300.0,0.0001509,2]
[342185276,1731568232666,-300.0,0.0001509,2]
[342185277,1731568232675,-5460.8394105,0.00015091,2]
[342185278,1731568232687,-448.005,0.00015091,2]
[342185279,1731568232698,-940.92675999,0.00015091,2]
[342185309,1731568235428,-18050.22882951,0.00015091,2]
[342185310,1731568235437,-1098.9506276,0.0001526,2]
[342185311,1731568235446,-7374.56358501,0.00015357,2]
[342185312,1731568235455,-161.4574547,0.0001537,2]
[342185313,1731568235465,-182.388947,0.00016443,2]
[342185314,1731568235474,-618.68596869,0.000165,2]
[342185315,1731568235483,-420.0,0.00016513,2]
[342185316,1731568235492,-1279.00620937,0.00016552,2]
[342185317,1731568235501,-973.43164962,0.00016577,2]
[342185318,1731568235510,-751.44552257,0.00016578,2]
[342185319,1731568235519,-1000.0,0.00016578,2]
[342185320,1731568235528,-820.51623456,0.0001658,2]
[342185321,1731568235537,-420.0,0.00016598,2]
[342185322,1731568235546,-150.01,0.0001665,2]
[342185323,1731568235558,-882.78576942,0.0001665,2]
[342185324,1731568235567,-973.43164962,0.00016653,2]
[342185325,1731568235575,-500.0,0.00016672,2]
[342185326,1731568235584,-500.0,0.00016672,2]
[342185327,1731568235594,-227.12562855,0.00016672,2]
[342185328,1731568235603,-500.0,0.00016672,2]
[342185329,1731568235612,-500.0,0.00016672,2]
[342185330,1731568235621,-183.80607118,0.00016672,2]
[342185331,1731568235630,-500.0,0.00016672,2]
[342185332,1731568235639,-500.0,0.00016672,2]
[342185333,1731568235648,-500.0,0.00016672,2]
[342185334,1731568235657,-500.0,0.00016672,2]
[342185335,1731568235666,-500.0,0.00016672,2]
[342185336,1731568235675,-500.0,0.00016672,2]
[342185337,1731568235684,-500.0,0.00016672,2]
[342185338,1731568235693,-500.0,0.00016672,2]
[342185339,1731568235703,-500.0,0.00016672,2]
[342185340,1731568235712,-500.0,0.00016672,2]
[342185341,1731568235722,-500.0,0.00016672,2]
[342185342,1731568235731,-500.0,0.00016672,2]
[342185343,1731568235741,-500.0,0.00016672,2]
[342185344,1731568235751,-500.0,0.00016672,2]
[342185345,1731568235760,-500.0,0.00016672,2]
[342185346,1731568235770,-500.0,0.00016672,2]
[342185347,1731568235778,-500.0,0.00016672,2]
[342185348,1731568235788,-500.0,0.00016672,2]
[342185349,1731568235797,-500.0,0.00016672,2]
[342185350,1731568235807,-500.0,0.00016672,2]
[342185351,1731568235817,-500.0,0.00016672,2]
[342185352,1731568235825,-500.0,0.00016672,2]
[342185353,1731568235834,-500.0,0.00016672,2]
[342185354,1731568235844,-500.0,0.00016672,2]
[342185355,1731568235852,-500.0,0.00016672,2]
[342185356,1731568235861,-500.0,0.00016672,2]
[342185357,1731568235871,-500.0,0.00016672,2]
[342185358,1731568235880,-500.0,0.00016672,2]
[342185359,1731568235889,-500.0,0.00016672,2]
[342185360,1731568235898,-500.0,0.00016672,2]
[342185361,1731568235907,-500.0,0.00016672,2]
[342185362,1731568235916,-500.0,0.00016672,2]
[342185363,1731568235925,-500.0,0.00016672,2]
[342185364,1731568235934,-300.0,0.00016672,2]
[342185365,1731568235943,-350.0,0.00016672,2]
[342185366,1731568235952,-500.0,0.00016672,2]
[342185367,1731568235961,-500.0,0.00016672,2]
[342185368,1731568235970,-500.0,0.00016672,2]
[342185369,1731568235979,-500.0,0.00016672,2]
[342185370,1731568235989,-500.0,0.00016672,2]
[342185371,1731568235999,-500.0,0.00016672,2]
[342185372,1731568236008,-500.0,0.00016672,2]
[342185373,1731568236017,-500.0,0.00016672,2]
[342185374,1731568236027,-500.0,0.00016672,2]
[342185375,1731568236035,-500.0,0.00016672,2]
[342185376,1731568236045,-500.0,0.00016672,2]
[342185377,1731568236057,-500.0,0.00016672,2]
[342185378,1731568236067,-500.0,0.00016672,2]
[342185379,1731568236076,-500.0,0.00016672,2]
[342185380,1731568236086,-500.0,0.00016672,2]
[342185381,1731568236095,-500.0,0.00016672,2]
[342185382,1731568236104,-500.0,0.00016672,2]
[342185383,1731568236115,-500.0,0.00016672,2]
[342185384,1731568236125,-500.0,0.00016672,2]
[342185385,1731568236134,-500.0,0.00016672,2]
[342185386,1731568236144,-500.0,0.00016672,2]
[342185387,1731568236154,-500.0,0.00016672,2]
[342185388,1731568236165,-500.0,0.00016672,2]
[342185389,1731568236175,-500.0,0.00016672,2]
[342185390,1731568236185,-500.0,0.00016672,2]
[342185391,1731568236195,-500.0,0.00016672,2]
[342185392,1731568236205,-500.0,0.00016672,2]
[342185393,1731568236215,-500.0,0.00016672,2]
[342185394,1731568236224,-500.0,0.00016672,2]
[342185395,1731568236234,-500.0,0.00016672,2]
[342185396,1731568236244,-500.0,0.00016672,2]
[342185397,1731568236255,-500.0,0.00016672,2]
[342185398,1731568236271,-500.0,0.00016672,2]
[342185399,1731568236291,-500.0,0.00016672,2]
[342185400,1731568236315,-500.0,0.00016672,2]
[342185401,1731568236336,-500.0,0.00016672,2]
[342185402,1731568236357,-500.0,0.00016672,2]
[342185403,1731568236378,-500.0,0.00016672,2]
[342185404,1731568236393,-500.0,0.00016672,2]
[342185405,1731568236403,-500.0,0.00016672,2]
[342185406,1731568236414,-500.0,0.00016672,2]
[342185407,1731568236424,-500.0,0.00016672,2]
[342185408,1731568236434,-500.0,0.00016672,2]
[342185409,1731568236443,-500.0,0.00016672,2]
[342185410,1731568236454,-500.0,0.00016672,2]
[342185411,1731568236464,-500.0,0.00016672,2]
[342185412,1731568236473,-500.0,0.00016672,2]
[342185413,1731568236483,-500.0,0.00016672,2]
[342185414,1731568236492,-500.0,0.00016672,2]
[342185415,1731568236501,-500.0,0.00016672,2]
[342185416,1731568236511,-500.0,0.00016672,2]
[342185417,1731568236520,-500.0,0.00016672,2]
[342185418,1731568236529,-500.0,0.00016672,2]
[342185419,1731568236539,-500.0,0.00016672,2]
[342185420,1731568236548,-500.0,0.00016672,2]
[342185421,1731568236559,-500.0,0.00016672,2]
[342185422,1731568236568,-500.0,0.00016672,2]
[342185423,1731568236578,-500.0,0.00016672,2]
[342185424,1731568236587,-192.15281575,0.00016672,2]
[342185425,1731568236596,-500.0,0.00016672,2]
[342185426,1731568236606,-500.0,0.00016672,2]
[342185427,1731568236616,-500.0,0.00016672,2]
[342185428,1731568236627,-500.0,0.00016672,2]
[342185429,1731568236637,-500.0,0.00016672,2]
[342185430,1731568236647,-500.0,0.00016672,2]
[342185431,1731568236658,-500.0,0.00016672,2]
[342185432,1731568236668,-500.0,0.00016672,2]
[342185433,1731568236678,-500.0,0.00016672,2]
[342185434,1731568236688,-500.0,0.00016672,2]
[342185435,1731568236698,-500.0,0.00016672,2]
[342185436,1731568236708,-500.0,0.00016672,2]
[342185437,1731568236717,-500.0,0.00016672,2]
[342185438,1731568236728,-500.0,0.00016672,2]
[342185439,1731568236737,-500.0,0.00016672,2]
[342185440,1731568236748,-500.0,0.00016672,2]
[342185441,1731568236758,-500.0,0.00016672,2]
[342185442,1731568236767,-500.0,0.00016672,2]
[342185443,1731568236776,-299.08366786,0.00016672,2]
[342185444,1731568236786,-500.0,0.00016672,2]
[342185445,1731568236796,-500.0,0.00016672,2]
[342185446,1731568236809,-500.0,0.00016672,2]
[342185447,1731568236818,-500.0,0.00016672,2]
[342185448,1731568236828,-500.0,0.00016672,2]
[342185449,1731568236837,-500.0,0.00016672,2]
[342185450,1731568236847,-500.0,0.00016672,2]
[342185451,1731568236857,-500.0,0.00016672,2]
[342185452,1731568236867,-500.0,0.00016672,2]
[342185453,1731568236876,-500.0,0.00016672,2]
[342185454,1731568236887,-500.0,0.00016672,2]
[342185455,1731568236896,-500.0,0.00016672,2]
[342185456,1731568236905,-316.60986192,0.00016672,2]
[342185457,1731568236915,-500.0,0.00016672,2]
[342185458,1731568236925,-500.0,0.00016672,2]
[342185459,1731568236935,-500.0,0.00016672,2]
[342185460,1731568236944,-500.0,0.00016672,2]
[342185461,1731568236954,-500.0,0.00016672,2]
[342185462,1731568236963,-500.0,0.00016672,2]
[342185463,1731568236973,-500.0,0.00016672,2]
[342185464,1731568236983,-500.0,0.00016672,2]
[342185465,1731568236993,-500.0,0.00016672,2]
[342185466,1731568237002,-500.0,0.00016672,2]
[342185467,1731568237012,-500.0,0.00016672,2]
[342185468,1731568237021,-500.0,0.00016672,2]
[342185469,1731568237032,-500.0,0.00016672,2]
[342185470,1731568237041,-499.99999999,0.00016672,2]
[342185471,1731568237054,-500.0,0.00016672,2]
[342185472,1731568237063,-500.0,0.00016672,2]
[342185473,1731568237158,-500.0,0.00016672,2]
[342185474,1731568237169,-500.0,0.00016672,2]
[342185475,1731568237179,-500.0,0.00016672,2]
[342185476,1731568237189,-500.0,0.00016672,2]
[342185477,1731568237198,-500.0,0.00016672,2]
[342185478,1731568237208,-500.0,0.00016672,2]
[342185479,1731568237218,-500.0,0.00016672,2]
[342185480,1731568237228,-500.0,0.00016672,2]
[342185481,1731568237238,-500.0,0.00016672,2]
[342185482,1731568237248,-500.0,0.00016672,2]
[342185483,1731568237258,-500.0,0.00016672,2]
[342185484,1731568237267,-500.0,0.00016672,2]
[342185485,1731568237277,-500.0,0.00016672,2]
[342185486,1731568237287,-500.0,0.00016672,2]
[342185487,1731568237297,-500.0,0.00016672,2]
[342185488,1731568237312,-500.0,0.00016672,2]
[342185489,1731568237322,-500.0,0.00016672,2]
[342185490,1731568237331,-500.0,0.00016672,2]
[342185491,1731568237342,-500.0,0.00016672,2]
[342185492,1731568237351,-500.0,0.00016672,2]
[342185493,1731568237361,-500.0,0.00016672,2]
[342185494,1731568237371,-500.0,0.00016672,2]
[342185495,1731568237381,-500.0,0.00016672,2]
[342185496,1731568237391,-300.0,0.00016672,2]
[342185497,1731568237401,-500.0,0.00016672,2]
[342185498,1731568237411,-550.00000001,0.00016672,2]
[342185499,1731568237420,-500.0,0.00016672,2]
[342185500,1731568237430,-500.0,0.00016672,2]
[342185501,1731568237439,-500.0,0.00016672,2]
[342185502,1731568237449,-500.0,0.00016672,2]
[342185503,1731568237458,-500.0,0.00016672,2]
[342185504,1731568237468,-500.0,0.00016672,2]
[342185505,1731568237478,-651.62590534,0.00016672,2]
[342185506,1731568237488,-500.0,0.00016672,2]
[342185507,1731568237497,-152.63797346,0.00016672,2]
[342185508,1731568237506,-448.43233139,0.00016672,2]
[342185509,1731568237516,-300.0,0.00016672,2]
[342185510,1731568237525,-500.0,0.00016672,2]
[342185511,1731568237535,-500.0,0.00016672,2]
[342185512,1731568237544,-500.0,0.00016672,2]
[342185513,1731568237556,-500.0,0.00016672,2]
[342185514,1731568237565,-500.0,0.00016672,2]
[342185515,1731568237575,-207.4011089,0.00016672,2]
[342185516,1731568237584,-500.0,0.00016672,2]
[342185517,1731568237593,-500.0,0.00016673,2]
[342185518,1731568237602,-503.04757886,0.00016673,2]
[342185519,1731568237612,-503.71305843,0.00016673,2]
[342185520,1731568237621,-200.5774804,0.00016673,2]
[342185521,1731568237630,-500.0,0.00016673,2]
[342185522,1731568237640,-500.0,0.00016673,2]
[342185524,1731568237649,-500.0,0.00016673,2]
[342185525,1731568237659,-500.0,0.00016673,2]
[342185526,1731568237668,-500.0,0.00016673,2]
[342185527,1731568237677,-500.0,0.00016673,2]
[342185528,1731568237687,-500.74048774,0.00016673,2]
[342185529,1731568237696,-503.97890222,0.00016673,2]
[342185530,1731568237705,-500.0,0.00016673,2]
[342185531,1731568237715,-500.0,0.00016673,2]
[342185532,1731568237724,-500.0,0.00016673,2]
[342185533,1731568237734,-151.0,0.00016674,2]
[342185534,1731568237743,-153.891233,0.00016674,2]
[342185536,1731568237752,-151.0,0.00016674,2]
[342185537,1731568237762,-151.323715,0.00016674,2]
[342185540,1731568237771,-300.052236,0.00016674,2]
[342185541,1731568237780,-300.052236,0.00016674,2]
[342185542,1731568237790,-300.052236,0.00016674,2]
[342185543,1731568237799,-300.052236,0.00016674,2]
[342185544,1731568237810,-300.052236,0.00016674,2]
[342185545,1731568237819,-300.052236,0.00016674,2]
[342185546,1731568237828,-300.052236,0.00016674,2]
[342185547,1731568237837,-300.052236,0.00016674,2]
[342185548,1731568237846,-300.052236,0.00016674,2]
[342185549,1731568237855,-300.052236,0.00016674,2]
[342185550,1731568237864,-300.052236,0.00016674,2]
[342185551,1731568237873,-300.052236,0.00016674,2]
[342185552,1731568237882,-300.052236,0.00016674,2]
[342185553,1731568237891,-300.052236,0.00016674,2]
[342185554,1731568237900,-300.052236,0.00016674,2]
[342185555,1731568237909,-300.052236,0.00016674,2]
[342185556,1731568237918,-300.052236,0.00016674,2]
[342185557,1731568237928,-300.052236,0.00016674,2]
[342185558,1731568237936,-300.052236,0.00016674,2]
[342185559,1731568237946,-300.052244,0.00016674,2]
[342185560,1731568237955,-207.59763,0.00016675,2]
[342185561,1731568237964,-207.59763,0.00016675,2]
[342185562,1731568237973,-207.59763,0.00016675,2]
[342185563,1731568237983,-207.59763,0.00016675,2]
[342185564,1731568237992,-207.59763,0.00016675,2]
[342185565,1731568238002,-207.59763,0.00016675,2]
[342185566,1731568238012,-207.59763,0.00016675,2]
[342185567,1731568238022,-207.59763,0.00016675,2]
[342185568,1731568238031,-207.59763,0.00016675,2]
[342185569,1731568238040,-207.59763,0.00016675,2]
[342185570,1731568238051,-207.59763,0.00016675,2]
[342185571,1731568238064,-207.59763,0.00016675,2]
[342185572,1731568238074,-207.59763,0.00016675,2]
[342185573,1731568238084,-207.59763,0.00016675,2]
[342185574,1731568238094,-207.59763,0.00016675,2]
[342185575,1731568238103,-207.59763,0.00016675,2]
[342185576,1731568238112,-207.59763,0.00016675,2]
[342185577,1731568238122,-207.59763,0.00016675,2]
[342185578,1731568238132,-207.59763,0.00016675,2]
[342185579,1731568238142,-207.597637,0.00016675,2]
[342185581,1731568238151,-500.0,0.00016675,2]
[342185582,1731568238160,-500.0,0.00016675,2]
[342185584,1731568238170,-232.27774519,0.00016675,2]
[342185585,1731568238180,-177.70554787,0.00016675,2]
[342185586,1731568238190,-216.51072679,0.00016675,2]
[342185587,1731568238200,-280.18084847,0.00016675,2]
[342185588,1731568238209,-500.0,0.00016675,2]
[342185589,1731568238219,-459.63590456,0.00016675,2]
[342185590,1731568238228,-475.34304577,0.00016675,2]
[342185591,1731568238239,-161.347967,0.00016676,2]
[342185592,1731568238249,-161.347967,0.00016676,2]
[342185593,1731568238261,-161.347967,0.00016676,2]
[342185594,1731568238271,-161.347967,0.00016676,2]
[342185595,1731568238282,-161.347967,0.00016676,2]
[342185596,1731568238293,-161.347967,0.00016676,2]
[342185597,1731568238309,-161.347967,0.00016676,2]
[342185598,1731568238319,-161.347967,0.00016676,2]
[342185599,1731568238332,-161.347967,0.00016676,2]
[342185601,1731568238342,-161.347967,0.00016676,2]
[342185602,1731568238356,-161.347967,0.00016676,2]
[342185603,1731568238366,-161.347967,0.00016676,2]
[342185604,1731568238375,-161.347967,0.00016676,2]
[342185605,1731568238387,-161.347967,0.00016676,2]
[342185606,1731568238397,-161.347967,0.00016676,2]
[342185607,1731568238407,-161.347967,0.00016676,2]
[342185608,1731568238416,-161.347967,0.00016676,2]
[342185609,1731568238426,-161.347967,0.00016676,2]
[342185610,1731568238435,-161.347967,0.00016676,2]
[342185611,1731568238444,-161.347958,0.00016676,2]
[342185612,1731568238454,-151.0,0.00016676,2]
[342185613,1731568238463,-343.266896,0.00016676,2]
[342185614,1731568238473,-343.266896,0.00016676,2]
[342185615,1731568238482,-343.266896,0.00016676,2]
[342185616,1731568238492,-343.266896,0.00016676,2]
[342185617,1731568238501,-343.266896,0.00016676,2]
[342185618,1731568238511,-343.266896,0.00016676,2]
[342185619,1731568238520,-343.266896,0.00016676,2]
[342185620,1731568238529,-343.266896,0.00016676,2]
[342185621,1731568238539,-343.266896,0.00016676,2]
[342185622,1731568238549,-343.266896,0.00016676,2]
[342185623,1731568238567,-343.266896,0.00016676,2]
[342185624,1731568238577,-343.266896,0.00016676,2]
[342185626,1731568238587,-343.266896,0.00016676,2]
[342185628,1731568238598,-343.266896,0.00016676,2]
[342185630,1731568238609,-343.266896,0.00016676,2]
[342185631,1731568238619,-343.266896,0.00016676,2]
[342185632,1731568238630,-343.266896,0.00016676,2]
[342185633,1731568238640,-343.266896,0.00016676,2]
[342185634,1731568238650,-343.266896,0.00016676,2]
[342185635,1731568238660,-343.2669,0.00016676,2]
[342185636,1731568238671,-151.0,0.00016676,2]
[342185637,1731568238681,-151.0,0.00016676,2]
[342185638,1731568238689,-151.0,0.00016676,2]
[342185639,1731568238697,-151.0,0.00016676,2]
[342185640,1731568238704,-743.986499,0.00016676,2]
[342185641,1731568238712,-151.0,0.00016676,2]
[342185642,1731568238720,-743.986499,0.00016676,2]
[342185643,1731568238819,-151.0,0.00016676,2]
[342185644,1731568238829,-743.986499,0.00016676,2]
[342185645,1731568238839,-151.0,0.00016676,2]
[342185646,1731568238849,-743.986499,0.00016676,2]
[342185647,1731568238858,-151.0,0.00016676,2]
[342185648,1731568238867,-743.986499,0.00016676,2]
[342185649,1731568238877,-743.986499,0.00016676,2]
[342185650,1731568238887,-743.986499,0.00016676,2]
[342185651,1731568238897,-743.986499,0.00016676,2]
[342185652,1731568238906,-743.986499,0.00016676,2]
[342185653,1731568238916,-743.986499,0.00016676,2]
[342185654,1731568238925,-743.986499,0.00016676,2]
[342185655,1731568238934,-743.986499,0.00016676,2]
[342185656,1731568238943,-743.986499,0.00016676,2]
[342185657,1731568238953,-743.986499,0.00016676,2]
[342185658,1731568238962,-743.986499,0.00016676,2]
[342185659,1731568238972,-1163.622679,0.00016676,2]
[342185660,1731568238981,-1163.622679,0.00016676,2]
[342185661,1731568238991,-1163.622679,0.00016676,2]
[342185662,1731568239000,-1163.622679,0.00016676,2]
[342185663,1731568239009,-1163.622679,0.00016676,2]
[342185664,1731568239019,-743.986499,0.00016676,2]
[342185665,1731568239029,-1163.622679,0.00016676,2]
[342185666,1731568239039,-1163.622679,0.00016676,2]
[342185667,1731568239057,-743.986499,0.00016676,2]
[342185668,1731568239066,-1163.622679,0.00016676,2]
[342185669,1731568239075,-743.986499,0.00016676,2]
[342185670,1731568239085,-1163.622679,0.00016676,2]
[342185671,1731568239094,-743.986499,0.00016676,2]
[342185672,1731568239103,-1163.622679,0.00016676,2]
[342185673,1731568239113,-743.986496,0.00016676,2]
[342185674,1731568239123,-1163.622679,0.00016676,2]
[342185675,1731568239132,-1163.622679,0.00016676,2]
[342185676,1731568239142,-1163.622679,0.00016676,2]
[342185677,1731568239151,-1163.622679,0.00016676,2]
[342185678,1731568239161,-1163.622679,0.00016676,2]